Cogmind - Beta 14 @@@ ROGUE MODE // 2024.10.15 @ 21:04:34 Player: Levos Result: Destroyed by G-47 Trooper with Particle Gun Performance ------------- Evolutions (0) 0 Regions Visited (1) 200 Robots Destroyed (6) 30 Value Destroyed (199) 199 Prototype IDs (0) 0 Alien Tech Used (0) 0 Bonus (0) 0 TOTAL SCORE: 429 Bonus ------- None Cogmind --------- Core Integrity 0/250 Matter 255/300 Energy 100/100 System Corruption 0% Temperature Cool (9) Movement Walking (120) Location -10/Materials Parts ------- > --- POWER (1) -------- (None) > --- PROPULSION (2) --- Aluminum Leg > --- UTILITY (2) ------ Small Storage Unit Targeting Computer > --- WEAPON (2) ------- Beam Cannon > --- INVENTORY (8) ---- Light Treads Light Treads Improved Heat Sink Sensor Array Peak State ------------ > --- POWER ------------ Ion Engine > --- PROPULSION ------- Aluminum Leg Aluminum Leg > --- UTILITY ---------- Small Storage Unit Targeting Computer > --- WEAPON ----------- Assault Rifle Assault Rifle > --- INVENTORY -------- Light Treads Light Treads [Rating: 7] Favorites ----------- Power Ion Engine Engine Ion Engine Propulsion Aluminum Leg Leg Aluminum Leg Utility Small Storage Unit Storage Small Storage Unit Processor Targeting Computer Weapon Assault Rifle Energy Cannon Beam Cannon Ballistic Gun Assault Rifle Build | -11 -10 ------- Run | Yrd Mat Slots Evolved . | . . Power . | . . Propulsion . | . . Utility . | . . Weapon . | . . Parts Attached 11 | 5 6 Power 2 | 1 1 Engine 2 | 1 1 Core . | . . Reactor . | . . Propulsion 4 | 2 2 Treads . | . . Leg 4 | 2 2 Wheel . | . . Hover . | . . Flight . | . . Utility 2 | 1 1 Device . | . . Storage 1 | 1 . Processor 1 | . 1 Hackware . | . . Protection . | . . Artifact . | . . Weapon 3 | 1 2 Energy Gun . | . . Energy Cannon 1 | . 1 Ballistic Gun 2 | 1 1 Ballistic Cannon . | . . Launcher . | . . Special Weapon . | . . Impact Weapon . | . . Slashing Weapon . | . . Piercing Weapon . | . . Special Melee Weapon . | . . Unidentified Prototypes . | . . Parts Lost 7 | . 7 Power 2 | . 2 Propulsion 3 | . 3 Utility . | . . Weapon 2 | . 2 Highest Loss Streak 7 | . 7 To Critical Strikes . | . . Average Slot Usage (%) 88 | . 88 Engine 12 | . 12 Leg 26 | . 26 Storage 14 | . 14 Processor 11 | . 11 Energy Cannon 1 | . 1 Ballistic Gun 20 | . 20 Peak Build Rating 7 | 5 7 Average Rating 5 | 3 6 On Entrance 2 | . 5 Naked Turns . | . . Heaviest Build 14 | 12 14 Greatest Support 20 | 20 20 Greatest Overweight (x) 3 | . 3 Average Overweight (x) . | . . Largest Inventory Capacity 8 | 8 8 Average Capacity 7 | 7 8 Most Carried 7 | 5 7 Average Carried 3 | 1 4 Final Capacity 8 | 8 8 Final Carried 4 | 2 4 Class Distribution -------------------- 100% | Mutant Dominant Class ---------------- Mutant | -10/Materials Resources | -11 -10 ----------- Run | Yrd Mat Matter Collected 449 | 130 319 Remotely . | . . Salvage Created 291 | . 291 Parts 14 | . 14 Haulers Intercepted . | . . Recyclers Shooed 1 | 1 . Parts Field Recycled . | . . Retrieved Matter . | . . Parts Self-Destructed . | . . Prevented . | . . Kills | -11 -10 ------- Run | Yrd Mat Combat Hostiles Destroyed 5 | . 5 Guns 5 | . 5 Classes Destroyed 2 | . 2 Recycler 1 | . 1 Grunt 5 | . 5 Best Kill Streak 2 | . 2 Combat Bots Only 2 | . 2 Max Kills in Single Turn 1 | . 1 Gunslinging . | . . Exploded . | . . Melee . | . . Uniques/NPCs Destroyed . | . . Combat | -11 -10 -------- Run | Yrd Mat Hostile Shots Fired 121 | . 121 Missed 39 | . 39 Damage Taken 1051 | . 1051 Core 254 | . 254 Absorbed by Shields . | . . Core Remaining (%) 100 | 100 . Volleys Fired 51 | 4 47 Largest 2 | 1 2 Hottest 60 | 20 60 Shots Fired 79 | 4 75 Gun 73 | 4 69 Cannon 6 | . 6 Launcher . | . . Special . | . . Kinetic 73 | 4 69 Thermal 6 | . 6 Explosive . | . . Electromagnetic . | . . Robot Hit Streak 12 | 1 12 Robot Miss Streak 3 | 1 3 Penetration Max . | . . Secondary Targets . | . . Shots Hit Robots 52 | 2 50 Core Hits 15 | . 15 Critical Kills . | . . Critical Parts Destroyed 1 | . 1 Critical Strikes 1 | . 1 Destroy 1 | . 1 Melee Attacks . | . . Impact . | . . Slashing . | . . Piercing . | . . Sneak Attacks . | . . Combat Hostiles . | . . Follow-up Attacks . | . . Damage Inflicted 711 | 26 685 Guns 658 | 26 632 Cannons 53 | . 53 Explosions . | . . Melee . | . . Ramming . | . . Kinetic 658 | 26 632 Thermal 53 | . 53 Explosive . | . . Electromagnetic . | . . Impact . | . . Slashing . | . . Piercing . | . . Highest Corruption . | . . Average Corruption . | . . Corruption Purged . | . . Corruption Blocked . | . . Overload Shots . | . . Overflow Damage . | . . Projectiles . | . . Explosions . | . . Melee . | . . Knockbacks . | . . Impact . | . . Kinetic . | . . Secondary . | . . Self-Inflicted Damage . | . . Shots . | . . Rammed . | . . Targets Rammed . | . . Kicked . | . . Crushed . | . . Highest Temperature 55 | . 55 Average Temperature 11 | . 11 Received Heat Transfer 582 | . 582 Siege Activations . | . . Robots Corrupted . | . . Combat Hostiles . | . . Parts Fried . | . . Impact Corruptions . | . . Robots Melted . | . . Combat Hostiles . | . . Parts Melted . | . . Heat Transferred 111 | . 111 Parts Sabotaged . | . . Parts Stolen . | . . Parts Stripped . | . . Power Chain Reactions . | . . Alert | -11 -10 ------- Run | Yrd Mat Peak Influence 95 | . 95 Initial . | . . Average 40 | . 48 Maximum Alert Level . | . . Low Security (%) 100 | 100 100 Level 1 . | . . Level 2 . | . . Level 3 . | . . Level 4 . | . . Level 5 . | . . High Security . | . . Max Security . | . . Squads Dispatched . | . . Investigation . | . . Extermination . | . . Reinforcement . | . . Assault . | . . Garrison . | . . Intercept . | . . Searches Triggered . | . . Construction Impeded . | . . Haulers Reinforced . | . . Active Scanning Responses . | . . Cargo Convoy Interrupts . | . . Stealth | -11 -10 --------- Run | Yrd Mat Distress Signals . | . . Communications Jammed . | . . Distress Signals . | . . Times Spotted 7 | . 7 Peak Tracking Total 3 | . 3 Tactical Retreats . | . . Traps | -11 -10 ------- Run | Yrd Mat Traps Triggered . | . . Indirectly . | . . Trap Hack Attempts . | . . Triggered . | . . Disarmed . | . . Reprogrammed . | . . Reused . | . . Traps Extracted . | . . Installed . | . . Triggered . | . . Machines | -11 -10 ---------- Run | Yrd Mat Machines Disabled 1 | . 1 Max in Single Turn 1 | . 1 Machines Repaired . | . . Machines Dismantled . | . . Machines Sabotaged . | . . Overloaded Fab Kills . | . . Hacking | -11 -10 --------- Run | Yrd Mat Machines Accessed . | . . Terminals . | . . Fabricators . | . . Repair Stations . | . . Recycling Units . | . . Scanalyzers . | . . Garrison Access . | . . Total Hacks . | . . Successful . | . . Failed . | . . Catastrophic . | . . Database Lockouts . | . . Manual . | . . Terminals . | . . Fabricators . | . . Repair Stations . | . . Recycling Units . | . . Scanalyzers . | . . Garrison Access . | . . Terminal Hacks . | . . Fabricator Hacks . | . . Repair Station Hacks . | . . Recycling Unit Hacks . | . . Scanalyzer . | . . Garrison Access Hacks . | . . Unauthorized Hacks . | . . Terminals . | . . Fabricators . | . . Repair Stations . | . . Recycling Units . | . . Scanalyzers . | . . Garrison Access . | . . Data Cores Recovered . | . . Used . | . . Hacking Detections . | . . Full Trace Events . | . . Feedback Events . | . . Feedback Blocked . | . . Robot Schematics Acquired . | . . Robots Built . | . . Authchips . | . . Time . | . . Total Robot Build Rating . | . . Part Schematics Acquired . | . . Parts Built . | . . Authchips . | . . Time . | . . Total Part Build Rating . | . . Parts Repaired . | . . Time . | . . Parts Recycled . | . . Recycled Matter . | . . Retrieved Matter . | . . Retrieved Components . | . . Parts Scanalyzed . | . . Part Schematics Acquired . | . . Parts Damaged . | . . Bothacking | -11 -10 ------------ Run | Yrd Mat Used RIF Installer . | . . Robots Hacked . | . . Non-combat . | . . Combat . | . . Robot Hacks Applied . | . . Relay Couplers Released . | . . Fabnet Peak Effective % . | . . Robots Rewired . | . . Allies Hacked . | . . Hacks Repelled . | . . Allies | -11 -10 -------- Run | Yrd Mat Total Allies . | . . Largest Group . | . . Highest-Rated Group . | . . Highest-Rated Ally . | . . Total Orders . | . . Ally Attacks . | . . Total Damage . | . . Kills . | . . Allies Corrupted . | . . Allies Melted . | . . Intel | -11 -10 ------- Run | Yrd Mat Robot Analysis Total . | . . Derelict Logs Recovered . | . . Drone Launches . | . . Drone Recoveries . | . . Exploration | -11 -10 ------------- Run | Yrd Mat Turns Passed 426 | 68 358 Spaces Moved 219 | 49 170 Core 17 | 14 3 Treads . | . . Legs 202 | 35 167 Wheels . | . . Hover . | . . Flight . | . . Fastest Speed 50 | 50 120 Average Speed 116 | 100 121 Slowest Speed 200 | 120 200 Overloaded Moves . | . . Propulsion Burnouts . | . . Robots Hopped . | . . Cave-ins Triggered . | . . Exploration Rate (%) 17 | 4 31 Regions Visited 1 Branch Regions . Pre-discovered Areas . | . . Known Exits Taken . | . . Unknown Exits Taken 1 | 1 . Scrap Searched . | . . Spaces Dug . | . . Terrain Destroyed . | . . Melee . | . . Projectile . | . . AOE . | . . Terrain Rammed . | . . Walls Destroyed . | . . Machines Disabled . | . . Actions | -11 -10 --------- Run | Yrd Mat Total 310 | 64 246 Wait 13 | . 13 Move 218 | 48 170 Hop . | . . Pick Up 16 | 7 9 Fast Attach . | . . Attach 11 | 5 6 Detach . | . . Swap . | . . Drop 1 | . 1 Fire 51 | 4 47 Melee . | . . Ram . | . . Kick . | . . Crush . | . . Escape Stasis . | . . Rewire . | . . Trap . | . . Miscellaneous . | . . Route ------- -11/Scrapyard -10/Materials History --------- Turn | Location | Event 12 | -11/Scrapyard | Discovered new exit (range 15) 69 | -11/Scrapyard | Entered Materials 306 | -10/Materials | Build established: Mutant 368 | -10/Materials | Core integrity fell below 50% 396 | -10/Materials | Core integrity fell below 20% 427 | -10/Materials | Destroyed by G-47 Trooper with Particle Gun Last Messages --------------- K-01 Serf collects debris. Ion Engine destroyed. K-01 Serf cleans the Terminal. Acquired Beam Cannon. K-01 Serf collects debris. K-01 Serf cleans the Material Processor. Lgt. Ion Engine destroyed. R-06 Scavenger collects Aluminum Leg. Terminal disabled. K-01 Serf collects debris. R-06 Scavenger collects Wheel. K-01 Serf collects debris. R-06 Scavenger collects Wheel. K-01 Serf cleans the Material Processor. K-01 Serf collects debris. K-01 Serf cleans the Material Processor. K-01 Serf collects debris. K-01 Serf cleans the Material Processor. K-01 Serf collects debris. Aluminum Leg destroyed. Map ----- +----------------------------------------------------+ | ??? ???+ ??????????????????????????????????? | | ??? ??# ??????????????????????????????????? | | ???? ### ??????????????????????????????????? | | ???? ???????????????????????????????????? | | ???? ?????????????? ???????????????????? | | ????? ! ????????????? #??????????????????? | | ?????? ^ ????????????? #??????????????????? | | ???#??""""" #???????????? #??????????????????? | | ???# ?""""" #???????????? #??????????????????? | | ???# ^""""" ############# #####??????????????? | | ???# """"" ????????????? | | ???# """"" ##??????????? | | ??## """"" [ ??????????? | | ? # """"" #?????????? | | + " """ "" #?????????? | | # T """"" """ #?????????? | | ??### k """"" """ #?????????? | | ????#+####+#### """"" """ #?????????? | | ????????? ??# g """ """ #?????????? | | ????????? ??# k #?????????? | | ???????? ?# g #?????????? | | ???????? ?#####= """ """ #?????????? | | ??????? ????#= """"" """"" #?????????? | | ??????? ????# """"" """"" #?????????? | | ?????? #???# """"" """"" #?????????? | | ?????? #???# @""" """ #?????????? | | ?????+#########???# k #?????????? | | ??????????????????# u #?????????? | | ??????????????????#############+## k #?????????? | | ?????????????????????????????? ## ##?????????? | | ?????????????????????????????? ?# #??????????? | | ????????????????????????????? ## #??????????? | | ?????????????????????????????"" ## #??????????? | | ????????????????????????????""" ## ########???? | | ????????????????????????????""" ## # #???? | | ???????????????????????????######## # """ #???? | | ?????????????????????????########## # """ #???? | | ?????????????????????????# # # """ #???? | | ?????????????????????????# """"" # # #???? | | ?????????????????????????# """"" # # """ #???? | | ?????????????????????????# """"" # + """ #???? | | ?????????????????????????# + # """ #???? | | ?????????????????????????# """"" # # #???? | | ?????????????????????????# """"" # # """ #???? | | ?????????????????????????# """"" # + """ #???? | | ?????????????????????????# # # """ #???? | | ?????????????????????????########## # #???? | | ??????????????????????????????????# ########???? | | ??????????????????????????????????# #??????????? | | ??????????????????????????????????#####??????????? | +----------------------------------------------------+ Best States ------------- Heat Dissipation 25 Energy Generation 10 Energy Capacity 250 Matter Stores 265 Matter Capacity 300 Sight Range 16 Terrain Scan Density 10 Evasion (%) 55 Targeting Accuracy 5 Item Schematics ----------------- None Robot Schematics ------------------ None Fabricated ------------ Nothing Alien Tech Used ----------------- None Achievements -------------- None Challenges ------------ None Game ------ Seed BladeMakeshiftClaws Manual? 0 Play Time 00:12:15 Cumulative 3.7 hours Start 2024.10.14 @ 22:00:33 End 2024.10.15 @ 21:04:34 Sessions 3 Manual Loads 0 Difficulty Rogue Special Mode None Game No. 6 Rogue 6 Adventurer 0 Explorer 0 Win Type - Total 0 Types 0/0/0/0/0/0/0/0/0 Lore% 1 Gallery% 6 Achievement% 5 Wizard Run 0 Options --------- Layout 1 ASCII 0 Keyboard 0 Movement Mouse Keybinds 0 Fullscreen 1 Font 24/Smallcaps Map View 50x35 Zoom Use 0% Tactical HUD 0 Map Filters NONE Filters NONE Steam 0 RUN: 0b105961-86b5-4432-8a51-094a60213f44